Cogmind - Beta 9.2 @@@ ROGUE MODE // 2019.11.26 @ 01:48:17 Player: Fleshy Vegetable Bird Result: Destroyed by D-53 Grenadier with Mini Grenade Launcher Performance ------------- Evolutions (0) 0 Regions Visited (4) 800 Robots Destroyed (27) 135 Value Destroyed (497) 497 Prototype IDs (2) 40 Alien Tech Used (0) 0 Bonus (0) 0 TOTAL SCORE: 1472 Bonus ------- None Cogmind --------- Core Integrity 0/250 Matter 290/300 Energy 85/100 System Corruption 0% Temperature Cool (74) Movement Rolling (130) Ox3 Location -9/Mines Parts ------- > --- POWER (1) -------- (None) > --- PROPULSION (2) --- Compact Wheel > --- UTILITY (2) ------ Large Storage Unit High-capacity Storage Unit > --- WEAPON (2) ------- Medium Laser Medium Laser > --- INVENTORY (18) --- Light Ion Engine Nuclear Core Light Nuclear Core Fission Core Fission Core Light Treads Light Treads Improved Treads Wheel Improved Heat Sink Large Storage Unit Humpback Light Assault Rifle Grenade Launcher Mining Laser Peak State ------------ > --- POWER ------------ Light Ion Engine > --- PROPULSION ------- Wheel Compact Wheel > --- UTILITY ---------- Large Storage Unit High-capacity Storage Unit > --- WEAPON ----------- Medium Laser Grenade Launcher > --- INVENTORY -------- Light Ion Engine Nuclear Core Light Nuclear Core Fission Core Fission Core Light Treads Light Treads Improved Treads Wheel Improved Heat Sink Large Storage Unit Humpback Medium Laser Light Assault Rifle Mining Laser [Rating: 10] Favorites ----------- Power Light Ion Engine Engine Light Ion Engine Propulsion Wheel Wheel Wheel Utility Large Storage Unit Storage Large Storage Unit Weapon Grenade Launcher Energy Gun Medium Laser Ballistic Gun Light Assault Rifle Launcher Grenade Launcher Special Weapon Mining Laser Build | -11 -10 -10 -10 -9 ------- Run | Scr Mat Min Exi Min Slots Evolved . | . . . . . Power . | . . . . . Propulsion . | . . . . . Utility . | . . . . . Weapon . | . . . . . Parts Attached 20 | 6 9 3 . 2 Power 2 | 1 1 . . . Engine 2 | 1 1 . . . Core . | . . . . . Reactor . | . . . . . Propulsion 4 | 2 1 1 . . Treads . | . . . . . Leg . | . . . . . Wheel 4 | 2 1 1 . . Hover . | . . . . . Flight . | . . . . . Utility 3 | 1 2 . . . Device . | . . . . . Storage 3 | 1 2 . . . Processor . | . . . . . Hackware . | . . . . . Protection . | . . . . . Artifact . | . . . . . Weapon 11 | 2 5 2 . 2 Energy Gun 8 | 2 4 . . 2 Energy Cannon . | . . . . . Ballistic Gun 1 | . . 1 . . Ballistic Cannon . | . . . . . Launcher 1 | . . 1 . . Special Weapon 1 | . 1 . . . Impact Weapon . | . . . . . Slashing Weapon . | . . . . . Piercing Weapon . | . . . . . Special Melee Weapon . | . . . . . Unidentified Prototypes . | . . . . . Parts Lost 8 | . 2 4 . 2 Power 1 | . . . . 1 Propulsion 2 | . . 1 . 1 Utility . | . . . . . Weapon 5 | . 2 3 . . Highest Loss Streak 2 | . 2 2 . 2 Average Slot Usage (%) 85 | . 89 83 85 92 Engine 14 | . 14 14 14 14 Wheel 25 | . 28 22 28 28 Storage 26 | . 18 28 28 28 Energy Gun 7 | . 25 4 . 14 Ballistic Gun 1 | . . 3 . . Launcher 8 | . . 9 14 7 Naked Turns . | . . . . . Heaviest Build 55 | 12 55 54 54 54 Greatest Support 26 | 20 20 26 26 26 Greatest Overweight (x) 5 | 1 2 5 2 2 Average Overweight (x) 2 | . . 2 2 2 Largest Inventory Capacity 18 | 6 18 18 18 18 Average Capacity 15 | 5 9 18 18 18 Most Carried 17 | 6 8 12 16 17 Average Carried 10 | 3 6 10 13 16 Final Capacity 18 | 6 18 18 18 18 Final Carried 16 | 6 8 11 16 16 Class Distribution -------------------- 100% | Mutant Dominant Class ---------------- Mutant | -10/Materials Mutant | -10/Mines Mutant | -10/Exiles Mutant | -9/Mines Resources | -11 -10 -10 -10 -9 ----------- Run | Scr Mat Min Exi Min Matter Collected 448 | 260 30 133 . 25 Remotely . | . . . . . Salvage Created 770 | 185 204 373 . 8 Parts 50 | 10 18 22 . . Haulers Intercepted . | . . . . . Recyclers Shooed 2 | 1 . 1 . . Parts Field Recycled . | . . . . . Retrieved Matter . | . . . . . Parts Self-Destructed . | . . . . . Prevented . | . . . . . Kills | -11 -10 -10 -10 -9 ------- Run | Scr Mat Min Exi Min Combat Hostiles Destroyed 17 | . 8 8 . 1 Guns 14 | . 8 5 . 1 AOE 3 | . . 3 . . Classes Destroyed 8 | 2 4 1 . 1 Worker 1 | . . 1 . . Tunneler 5 | 4 . 1 . . Recycler 2 | 1 . 1 . . Operator 1 | . 1 . . . Watcher 1 | . 1 . . . Swarmer 9 | . 6 3 . . Grunt 7 | . 2 5 . . Demolisher 1 | . . . . 1 Best Kill Streak 5 | 4 5 3 . 1 Combat Bots Only 5 | . 5 3 . 1 Max Kills in Single Turn 2 | 1 1 2 . 1 Gunslinging . | . . . . . Exploded 2 | . . 2 . . Melee . | . . . . . Uniques/NPCs Destroyed . | . . . . . Combat | -11 -10 -10 -10 -9 -------- Run | Scr Mat Min Exi Min Damage Taken 846 | . 321 277 . 248 Core 261 | . 81 49 . 131 Absorbed by Shields . | . . . . . Core Remaining (%) 100 | 100 . . . . Volleys Fired 66 | 14 22 27 . 3 Largest 2 | 2 2 2 . 2 Hottest 100 | 90 90 100 . 100 Shots Fired 103 | 19 38 40 . 6 Gun 96 | 19 38 33 . 6 Cannon . | . . . . . Launcher 7 | . . 7 . . Special . | . . . . . Kinetic 10 | . . 10 . . Thermal 86 | 19 38 23 . 6 Explosive 7 | . . 7 . . Electromagnetic . | . . . . . Robot Hit Streak 10 | 4 10 7 . 8 Robot Miss Streak 4 | 2 4 3 . 1 Penetration Max . | . . . . . Secondary Targets 1 | . . . . 1 Max Gunslinging Chain 1 | . . . . 1 Shots Hit Robots 64 | 13 23 24 . 4 Core Hits 40 | 6 13 18 . 3 Critical Hits . | . . . . . Critical Kills . | . . . . . Critical Parts Destroyed . | . . . . . Melee Attacks . | . . . . . Impact . | . . . . . Slashing . | . . . . . Piercing . | . . . . . Sneak Attacks . | . . . . . Combat Hostiles . | . . . . . Follow-up Attacks . | . . . . . Damage Inflicted 1058 | 185 313 511 . 49 Guns 735 | 185 313 188 . 49 Cannons . | . . . . . Explosions 323 | . . 323 . . Melee . | . . . . . Ramming . | . . . . . Kinetic 13 | . . 13 . . Thermal 722 | 185 313 175 . 49 Explosive 323 | . . 323 . . Electromagnetic . | . . . . . Impact . | . . . . . Slashing . | . . . . . Piercing . | . . . . . Highest Corruption . | . . . . . Average Corruption . | . . . . . Corruption Purged . | . . . . . Overload Shots . | . . . . . Overflow Damage 9 | . . 9 . . Projectiles . | . . . . . Explosions 9 | . . 9 . . Melee . | . . . . . Knockbacks . | . . . . . Impact . | . . . . . Kinetic . | . . . . . Secondary . | . . . . . Self-Inflicted Damage 24 | . . 24 . . Shots 1 | . . 1 . . Rammed . | . . . . . Targets Rammed . | . . . . . Kicked . | . . . . . Crushed . | . . . . . Highest Temperature 180 | 150 180 167 . 74 Average Temperature 63 | 76 62 64 . 45 Received Heat Transfer 105 | . 18 87 . . Siege Activations . | . . . . . Robots Corrupted . | . . . . . Combat Hostiles . | . . . . . Parts Fried . | . . . . . Impact Corruptions . | . . . . . Robots Melted . | . . . . . Combat Hostiles . | . . . . . Parts Melted 3 | 1 1 1 . . Heat Transferred 1980 | 507 807 518 . 148 Parts Sabotaged . | . . . . . Parts Stolen . | . . . . . Parts Stripped . | . . . . . Power Chain Reactions . | . . . . . Missiles Intercepted . | . . . . . Alert | -11 -10 -10 -10 -9 ------- Run | Scr Mat Min Exi Min Peak Influence 310 | 25 257 310 . 10 Average Influence 142 | 9 173 148 . . Maximum Alert Level 1 | . 1 1 . . Low Security (%) 70 | 100 38 80 . 100 Level 1 29 | . 61 19 . . Level 2 . | . . . . . Level 3 . | . . . . . Level 4 . | . . . . . Level 5 . | . . . . . High Security . | . . . . . Max Security . | . . . . . Squads Dispatched . | . . . . . Investigation . | . . . . . Extermination . | . . . . . Reinforcement . | . . . . . Assault . | . . . . . Garrison . | . . . . . Intercept . | . . . . . Construction Impeded . | . . . . . Haulers Reinforced . | . . . . . Stealth | -11 -10 -10 -10 -9 --------- Run | Scr Mat Min Exi Min Distress Signals . | . . . . . Communications Jammed . | . . . . . Distress Signals . | . . . . . Times Spotted 33 | . 16 11 . 6 Peak Tracking Total 6 | . 4 3 . 6 Tactical Retreats 4 | . 1 3 . . Traps | -11 -10 -10 -10 -9 ------- Run | Scr Mat Min Exi Min Traps Triggered . | . . . . . Indirectly . | . . . . . Trap Hack Attempts . | . . . . . Triggered . | . . . . . Disarmed . | . . . . . Reprogrammed . | . . . . . Reused . | . . . . . Traps Extracted . | . . . . . Installed . | . . . . . Triggered . | . . . . . Machines | -11 -10 -10 -10 -9 ---------- Run | Scr Mat Min Exi Min Machines Disabled 1 | . . 1 . . Max in Single Turn 1 | . . 1 . . Machines Sabotaged . | . . . . . Garrisons Compromised . | . . . . . Overloaded Fab Kills . | . . . . . Fab Network Shutdowns . | . . . . . Hacking | -11 -10 -10 -10 -9 --------- Run | Scr Mat Min Exi Min Machines Accessed 9 | . 7 . 2 . Terminals 7 | . 7 . . . Fabricators . | . . . . . Repair Stations . | . . . . . Recycling Units . | . . . . . Scanalyzers . | . . . . . Garrison Access . | . . . . . Total Hacks 16 | . 14 . 2 . Successful 10 | . 8 . 2 . Failed 6 | . 6 . . . Catastrophic 3 | . 3 . . . Database Lockouts . | . . . . . Manual 13 | . 13 . . . Terminals 14 | . 14 . . . Fabricators . | . . . . . Repair Stations . | . . . . . Recycling Units . | . . . . . Scanalyzers . | . . . . . Garrison Access . | . . . . . Terminal Hacks 5 | . 3 . 2 . Record 2 | . . . 2 . Part Schematic 1 | . 1 . . . Prototype ID Bank 1 | . 1 . . . Terminal Index 1 | . 1 . . . Fabricator Hacks . | . . . . . Repair Station Hacks . | . . . . . Recycling Unit Hacks . | . . . . . Scanalyzer . | . . . . . Garrison Access Hacks . | . . . . . Unauthorized Hacks 11 | . 11 . . . Terminals 5 | . 5 . . . Botnet 3 | . 3 . . . Disrupt 1 | . 1 . . . Operators 1 | . 1 . . . Fabricators . | . . . . . Repair Stations . | . . . . . Recycling Units . | . . . . . Scanalyzers . | . . . . . Garrison Access . | . . . . . Data Cores Recovered 1 | . 1 . . . Used 1 | . 1 . . . Hacking Detections 7 | . 7 . . . Full Trace Events . | . . . . . Feedback Events . | . . . . . Feedback Blocked . | . . . . . Robot Schematics Acquired . | . . . . . Robots Built . | . . . . . Matter . | . . . . . Time . | . . . . . Total Robot Build Rating . | . . . . . Part Schematics Acquired 1 | . 1 . . . Parts Built . | . . . . . Matter . | . . . . . Time . | . . . . . Total Part Build Rating . | . . . . . Parts Repaired . | . . . . . Time . | . . . . . Parts Recycled . | . . . . . Recycled Matter . | . . . . . Retrieved Matter . | . . . . . Retrieved Components . | . . . . . Parts Scanalyzed . | . . . . . Part Schematics Acquired . | . . . . . Parts Damaged . | . . . . . Bothacking | -11 -10 -10 -10 -9 ------------ Run | Scr Mat Min Exi Min Used RIF Installer . | . . . . . Robots Hacked . | . . . . . Non-combat . | . . . . . Combat . | . . . . . Robot Hacks Applied . | . . . . . Relay Couplers Released . | . . . . . Robots Rewired . | . . . . . Allies Hacked . | . . . . . Hacks Repelled . | . . . . . Allies | -11 -10 -10 -10 -9 -------- Run | Scr Mat Min Exi Min Total Allies 5 | . . 2 . 3 Largest Group 3 | . . 2 2 3 Highest-Rated Group 42 | . . 42 42 40 Highest-Rated Ally 31 | . . 31 31 16 Total Orders . | . . . . . Ally Attacks 4 | . . . . 4 Total Damage 29 | . . . . 29 Kills . | . . . . . Allies Corrupted . | . . . . . Allies Melted . | . . . . . Intel | -11 -10 -10 -10 -9 ------- Run | Scr Mat Min Exi Min Robot Analysis Total . | . . . . . Derelict Logs Recovered 2 | . . 2 . . Drone Launches . | . . . . . Drone Recoveries . | . . . . . Exploration | -11 -10 -10 -10 -9 ------------- Run | Scr Mat Min Exi Min Turns Passed 1846 | 98 371 830 525 22 Spaces Moved 1459 | 57 292 627 474 9 Core 9 | 9 . . . . Treads . | . . . . . Legs . | . . . . . Wheels 1450 | 48 292 627 474 9 Hover . | . . . . . Flight . | . . . . . Fastest Speed 50 | 50 80 110 110 110 Average Speed 106 | 79 87 115 110 110 Slowest Speed 130 | 90 100 130 110 110 Overloaded Moves . | . . . . . Propulsion Burnouts . | . . . . . Robots Hopped . | . . . . . Cave-ins Triggered . | . . . . . Exploration Rate (%) 51 | 4 55 99 90 7 Regions Visited 4 Branch Regions 3 Pre-discovered Areas 2 | . . 2 . . Known Exits Taken . | . . . . . Unknown Exits Taken 4 | 1 1 1 1 . Scrap Searched 3 | . . 2 . 1 Spaces Dug . | . . . . . Terrain Destroyed 51 | . . 51 . . Melee . | . . . . . Projectile . | . . . . . AOE 51 | . . 51 . . Actions | -11 -10 -10 -10 -9 --------- Run | Scr Mat Min Exi Min Total 1644 | 90 371 691 477 15 Wait 55 | . 26 29 . . Move 1455 | 56 291 626 473 9 Hop . | . . . . . Pick Up 38 | 13 14 6 4 1 Fast Attach . | . . . . . Attach 13 | 6 3 3 . 1 Detach . | . . . . . Swap 7 | . 6 . . 1 Drop 10 | 1 9 . . . Fire 66 | 14 22 27 . 3 Melee . | . . . . . Ram . | . . . . . Kick . | . . . . . Crush . | . . . . . Escape Stasis . | . . . . . Rewire . | . . . . . Trap . | . . . . . Miscellaneous . | . . . . . Route ------- -11/Scrapyard -10/Materials (discovered 2 exits: [*Min x2]) -10/Mines (discovered 3 exits: [*Mat x2] / *Exi) -10/Exiles -9/Mines History --------- Turn | Location | Event 10 | -11/Scrapyard | Discovered new exit (range 15) 99 | -11/Scrapyard | Entered Materials 310 | -10/Materials | Build established: Mutant 359 | -10/Materials | Discovered new exit (range 14) 375 | -10/Materials | Discovered new exit (range 16) 470 | -10/Materials | Entered Mines 684 | -10/Mines | Discovered new exit (range 9) 684 | -10/Mines | Discovered new exit (range 3) 860 | -10/Mines | Core integrity fell below 50% 879 | -10/Mines | Learned Materials terminal intel 1062 | -10/Mines | Learned location of Storage (-8) 1243 | -10/Mines | Deemed a non-threat by the Exiles lab entrance 1281 | -10/Mines | Discovered new exit (range 5) 1300 | -10/Mines | Entered Exiles 1300 | -10/Exiles | Found Exiles lab abandoned 1300 | -10/Exiles | Accompanied by 2 allies 1330 | -10/Exiles | Led the pair of lost Derelicts to a safe place 1813 | -10/Exiles | Discovered new exit (range 14) 1825 | -10/Exiles | Entered Mines 1826 | -9/Mines | Assembled infested the area 1829 | -9/Mines | Assisted by bots powering up and referring to "LRC-V3" 1831 | -9/Mines | Assisted by a Guerilla fighting off Assembled 1844 | -9/Mines | Core integrity fell below 20% 1847 | -9/Mines | Destroyed by D-53 Grenadier with Mini Grenade Launcher Last Messages --------------- 01833_ Found Weight Redist. System. 01833_ Found Terrain Scanner. 01833_ Found Imp. Treads. 01834_ Acquired 25 matter. 01834_ Trooper 2a destroyed. 01834_ Mercenary 2a destroyed. 01835_ Acquired Imp. Treads. 01836_ H7-MZU(h) destroyed. 01838_ as-58633 destroyed. 01839_ as-63339 destroyed. 01839_ as-40827 destroyed. 01841_ Lgt. Ion Engine destroyed. 01841_ Trooper 2b destroyed. 01843_ D-53 Grenadier heat short circuits Cmb. Airjet. 01843_ as-42742 destroyed. 01844_ D-53 Grenadier heat short circuits Cmb. Airjet. 01845_ The unstable cave ceiling collapses. 01845_ D-53 Grenadier destroyed. 01845_ Switching to secondary target: D-53 Grenadier. 01845_ Wheel destroyed. Map ----- +----------------------------------------------------+ | ?????????????????????????????????????????????????? | | ?????????????????????????????????????????????????? | | ?????????????????????????????????????????????????? | | ?????????????????????????????????????????????????? | | ?????????????????????????????????????????????????? | | ?????????????????????????????????????????????????? | | ?????????????????????????????????????????????????? | | ?????????????????????????????????????????????????? | | ?????????????????????????????????????????????????? | | ?????????????????????????????????????????????????? | | ?????????????????????????????????????????????????? | | ?????????????????????????????????????????????????? | | ?????????????????????????????????????????????????? | | ?????????????????????????????????????????????????? | | ?????????????????????????????????#???????????????? | | ???????????????????????????????? ##?#????????????? | | ??????????????????????????????? # ##???????????? | | ??????????????????????????????? #???????????? | | ?????????????????????????????? #???????????? | | ????????????????????????????? ##??????????? | | ??????????????????????####### #??????????? | | ?????????????????????## # ###?????????? | | ????????????????????## d % ?????????? | | ????????????????????# % k????????? | | ????????????????????# #???????????? | | ????????????????????# @ ## #?????????? | | ????????????????????# % #?????????? | | ????????????????????# * ### ??????????? | | ????????????????????## ##?????????????? | | ?????????????????????## #??????????????? | | ?????????????????????? ##??????????????? | | ?????????????????????## ??????????????? | | ??????????????????????# ########?????????????? | | ??????????????????????# #????????????????????? | | ??????????????????????#######????????????????????? | | ?????????????????????????????????????????????????? | | ?????????????????????????????????????????????????? | | ?????????????????????????????????????????????????? | | ?????????????????????????????????????????????????? | | | | | | | | | | | | | | | | | | | | | | | +----------------------------------------------------+ Best States ------------- Heat Dissipation 25 Energy Generation 10 Energy Capacity 250 Matter Stores 300 Matter Capacity 300 Sight Range 16 Terrain Scan Density 10 Evasion (%) 50 Item Schematics ----------------- Lgt. Treads | -10/Materials | Hacked Robot Schematics ------------------ None Fabricated ------------ Nothing Alien Tech Used ----------------- None Achievements -------------- None Challenges ------------ None Game ------ Seed ArchitectForceBarrier Manual? 0 Play Time 00:10:31 Cumulative 196.0 hours Start 2019.11.26 @ 01:38:18 End 2019.11.26 @ 01:48:17 Sessions 1 Manual Loads 0 Difficulty Rogue Special Mode None Game No. 270 Rogue 270 Adventurer 0 Explorer 0 Win Type - Total 2 Types 1/0/0/1/0/0/0 Lore% 52 Gallery% 74 Achievement% 51 Wizard Run 0 Options --------- ASCII 0 Keyboard 0 Movement Numpad Keybinds 0 Fullscreen 1 Font 16/Terminus Map View 75x55 Tactical HUD 1 Map Filters NONE Filters NONE Steam 1 RUN: 7b6417a8-2e2b-40ad-ba6c-f901b62abe8e